Workbook

Sheet кондитерская
A1: ООО "Хлебокомбинат "АБСОЛЮТ" | E1: Факт. адрес:625014, г. Тюмень, 3 км. Старого Тобольского тракта, 4а Контактные телефоны: 8 (3452) 393-933 - приёмная; 8 (3452) 393-500 - отдел реализации; e-mail absolut-hlebzakaz@mail.ru
A2: Наименование | D2: Вид и вес упаковки | F2: Отпускная цена за упаковку, руб. | H2: Срок хранения | I2: Цена за кг, руб.
A3: Сушки-баранки
A4: 1 | B4: Баранки ванильные | D4: 3,0 кг гофрокоробка | E4: 0,5 кг/6 прозрачный пакет с клипсой | F4: =SUM(I4*3) -> 225.0 | G4: 42.5 | H4: 30 суток | I4: 75.0
A5: 2 | B5: Баранки яичные | F5: =SUM(I5*3) -> 225.0 | G5: 42.5 | I5: 75.0
A6: 3 | B6: Баранки сахарные с маком | F6: 225.0 | G6: 42.5 | I6: 75.0
A7: 4 | B7: Сушки "Малютка" | D7: 4,0 кг гофрокоробка | E7: 0,4 кг/10 прозрачный пакет- подушка | F7: =SUM(I7*4) -> 292.0 | G7: 34.0 | H7: 45 суток | I7: 73.0
A8: 5 | B8: Сушки ванильные | F8: =SUM(I8*4) -> 292.0 | G8: 34.0 | I8: 73.0
A9: 6 | B9: Сушка новая | F9: =SUM(I9*4) -> 292.0 | G9: 34.0 | I9: 73.0
A10: 7 | B10: Сушки с маком | D10: - | F10: - | G10: 34.0 | I10: 73.0
B11: Маффины- кексы - коржики
A12: 8 | B12: Коржик молочный | D12: 0,08 кг в индивидуальной п/э | F12: 13.0 | H12: 7 суток | I12: -
A13: 9 | B13: Маффины "Лакомка" ванильные | D13: 0,3 кг/9 коррекс | E13: 1,0 кг коробка - "Телевизор" | F13: 60.0 | G13: 187.0 | H13: 21 сутки | I13: 187.0
A14: 10 | B14: Маффины "Лакомка" шоколадные | F14: 60.0 | G14: 180.0 | I14: 180.0
A15: 11 | B15: Кекс "Йогуртовый" | D15: 0,25 кг/9 коррекс | E15: 1,0 кг коробка - "Телевизор" | F15: 65.0 | G15: 220.0 | H15: 21 сутки | I15: 220.0
A16: 12 | B16: Кекс "Уфимский" | D16: 0,35 кг в индивидуальной п/э | F16: 55.0 | H16: 21 суток | I16: -
A17: 13 | B17: Кекс "Столичный" (с изюмом) цена за изделие весом 0,3 кг | D17: 0,3 кг в индивидуальной п/э | F17: 55.0 | I17: -
A18: Печенье
A19: 14 | B19: "Банановое" (песочное с начинкой, кремфил "Банан") | D19: 0,4 кг/10 коррекс | E19: 3,0 кг коробка - "Телевизор" | F19: 65.00 | G19: =SUM(I19*3) -> 390.0 | H19: 45 суток | I19: 130.0
A20: 15 | B20: "Твист" (песочное с какао) | E20: 2,0 кг коробка - "Телевизор" | F20: 47.0 | G20: =SUM(I20*2) -> 200.0 | H20: 60 суток | I20: 100.0
A21: 16 | B21: Печенье сдобное кокосовое "Сердечки" (сдобное с кокосом) | F21: 80.0 | G21: =I21*2 -> 350.0 | H21: 45 суток | I21: 175.0
A22: 17 | B22: "Греческое" (рассыпчатое печенье с семечками и овсяными хлопьями) | D22: 0,4кг/6коррекс | F22: 70.0 | G22: =I22*2 -> 308.0 | H22: 45 суток | I22: 154.0
A23: 18 | B23: "Атланта маковое" (хрустящее печенье с маком) | D23: - | F23: - | G23: 300.0 | H23: 30 суток | I23: 150.0
A24: 19 | B24: "Атланта шоколад" (хрустящее печенье с какао) | D24: - | F24: - | G24: 280.0 | I24: 140.0
A25: 20 | B25: "Атланта" (cдобное печенье) | D25: - | F25: - | G25: 288.0 | I25: 144.0
A26: 21 | B26: "Атланта творожное" (печенье творожное с изюмом) | D26: 0,35 кг/10 коррекс | E26: 2,5 кг коробка - "Телевизор" | F26: 62.00 | G26: =SUM(I26*2.5) -> 380.0 | H26: 60 суток | I26: 152.0
A27: 22 | B27: "Атланта фруктовое" (тонкое печенье с фруктовой начинкой) | D27: - | F27: - | G27: =I27*2.5 -> 370.0 | H27: 30 суток | I27: 148.0
A28: 23 | B28: "Датское" (нежное рассыпчатое песочное печенье с какао) | D28: 0,4 кг/10 коррекс | E28: 2,5 кг коробка - "Телевизор" | F28: 62.00 | G28: =SUM(I28*2.5) -> 345.0 | H28: 60 суток | I28: 138.0
A29: 24 | B29: "Колечки медовые" песочное со вкусом меда | D29: - | E29: 2,0 кг коробка - "Телевизор" | F29: - | G29: =SUM(I29*2) -> 240.0 | I29: 120.0
A30: 25 | B30: "Овсяное" с изюмом | D30: 0,4 кг/12 пакет п/э | E30: 3,5 кг коробка | F30: 47.0 | G30: =I30*3.5 -> 346.5 | I30: 99.0
A31: 26 | B31: "Овсяное" с шоколадными каплями | F31: 48.0 | G31: =I31*3.5 -> 367.5 | I31: 105.0
A32: 27 | B32: "Овсяное" (классическое по ГОСТу) | F32: 42.0 | G32: =I32*3.5 -> 339.5 | I32: 97.0
A33: 28 | B33: "Колобок с вареной сгущенкой" (печенье с начинкой сгущеное молоко) | D33: 0,45 кг/10 коррекс | E33: 2,5 кг коробка - "Телевизор" | F33: 60.8 | G33: =I33*2.5 -> 287.5 | I33: 115.0
A34: 29 | B34: Печенье сдобное творожное (с натуральным творогом) | D34: - | E34: 2,0 кг коробка - "Телевизор" | F34: - | G34: =SUM(I34*2) -> 370.0 | H34: 30 суток | I34: 185.0
A35: 30 | B35: "Творожное с цукатами" | D35: - | F35: - | G35: =I35*2 -> 316.0 | I35: 158.0
A36: 31 | B36: Солнышко печенье сдобное | D36: - | F36: - | G36: =I36*2 -> 278.0 | I36: 139.0
A37: 32 | B37: "Сердечки" изделия слоенные изысканные | D37: 0,3 кг/12 коррекс | E37: - | F37: 50.0 | G37: - | H37: 60 суток | I37: -
A38: 33 | B38: "Сердечки" с корицей изделия слоенные изысканные | F38: 52.0 | G38: - | I38: -
A39: 34 | B39: "Ромашки" (сдобное печенье) | D39: 0,3 кг /18коррекс | E39: 2,0 кг коробка - "Телевизор" | F39: 60.0 | G39: =I39*2 -> 288.0 | H39: 60 суток | I39: 144.0
A40: 35 | B40: Сахарное "Топтыжка" топленое молоко | D40: - | E40: 3,5 кг коробка | F40: - | G40: =SUM(I40*3.5) -> 308.0 | H40: 90 суток | I40: 88.0
A41: 36 | B41: Сахарное "Топтыжка" к кофе | D41: - | E41: 3,0 кг и 5,3кг коробка | F41: - | G41: =SUM(I41*3) -> 264.0 | I41: 88.0
A42: 37 | B42: Сахарное "Ажурное" сливочное | D42: 0,65/12 коробка | F42: 66.0 | G42: =SUM(I42*3) -> 288.0 | I42: 96.0
A43: 38 | B43: Сахарное "Абсолют" шоколадное /новинка/ | D43: - | E43: 3,0 кг коробка | F43: - | G43: =SUM(I43*3) -> 360.0 | I43: 120.0
A44: 39 | B44: Сахарное "Абсолют юбилейное" /новинка/ | D44: 0,3 кг /18коррекс | E44: 3,0 кг коробка | F44: 39.0 | G44: 360.0 | I44: 120.0
A45: 40 | B45: Сахарное "Кроха" /новинка/ | D45: 0,3 кг /18коррекс | E45: 2,0 кг коробка | F45: 30.0 | G45: =SUM(I45*2) -> 180.0 | I45: 90.0
A46: 41 | B46: Сахарное " Фитнес" зерновое /новинка/ | D46: =D45 -> 0,3 кг /18коррекс | F46: 34.0 | G46: 220.0 | I46: 110.0
A47: 42 | B47: "Орешки" с вареной сгущенкой | D47: 0,6 кг/12 коробка | E47: 3,5 кг коробка - "Телевизор" | F47: 79.0 | G47: =SUM(I47*3.5) -> 441.0 | H47: 60 суток | I47: 126.0
A48: 43 | B48: Вафли венские | D48: - | E48: 1,8 кг коробка -"телевизор" | F48: - | G48: =SUM(I48*1.8) -> 216.0 | H48: 30 суток | I48: 120.0
A49: 44 | B49: Вафли венские с фруктовой начинкой | D49: 0,35/18 коррекс | E49: - | F49: 43.4 | G49: - | I49: -
A50: 45 | B50: Вафли венские с вареной сгущенкой | F50: 49.0 | G50: - | I50: -
A51: 46 | B51: Полоски слоеные с изюмом | D51: 0,55 /12 коробка | E51: - | F51: 81.0 | G51: - | H51: 60 суток | I51: -
A52: 47 | B52: Печенье сдобное "Лакомка клюквенная" | D52: 0,65 /12 коробка | E52: 2,5 кг коробка - "Телевизор" | F52: 101.0 | G52: =SUM(I52*2.5) -> 370.0 | H52: 60 суток | I52: 148.0
A53: 48 | B53: Печенье сдобное "Лакомка вишневая"
A54: 49 | B54: Печенье сдобное "Лакомка варенка" | D54: 0,75/12 коробка
A55: 50 | B55: Печенье сдобное "Лакомка" с абрикосовой начинкой | D55: 0,65/12 коробка
A56: 51 | B56: Печенье сдобное "Солодовое" с кунжутом /новинка/ | D56: - | E56: 2,0 кг коробка | F56: - | G56: =SUM(I56*2) -> 350.0 | I56: 175.0
A57: 52 | B57: Печенье "Чиполлино" ( без сахара) /новинка/ | D57: 0,55 /12 коробка | F57: 100.0 | G57: =SUM(I57*2) -> 362.0 | I57: 181.0
A58: 53 | B58: Печенье "Ракушки" с фруктово-ягодной начинкой /новинка/ | D58: 0,4 /10 коробка | E58: 2,5 кг коробка - "Телевизор" | F58: 65.0 | G58: =SUM(I58*2.5) -> 420.0 | I58: 168.0
A59: 54 | B59: Печенье сдобное "Кукурузное" /новинка/ | D59: 0,45/12 коробка | E59: 2,5 кг коробка - "Телевизор" | F59: 70.0 | G59: =SUM(I59*2.5) -> 362.5 | I59: 145.0
A60: ПРЯНИКИ
A61: 55 | B61: "Воронежские "по ГОСТ | D61: 0,4 кг/14 пакет п/э | E61: 6,0 кг короб гофрокартон | F61: 37.0 | G61: =I61*6 -> 510.0 | H61: 60 суток | I61: 85.0
A62: 56 | B62: "Комсомольские" по ГОСТ | F62: 38.0 | G62: 516.0 | I62: 86.0
A63: 57 | B63: "Подмосковные" по ГОСТ | F63: 39.0 | G63: 516.0 | I63: 86.0
A64: 58 | B64: "Шоколадные" по ГОСТ | F64: 42.0 | G64: 546.0 | I64: 91.0
A65: 59 | B65: "Северные" по ГОСТ | F65: 37.0 | G65: 510.0 | I65: 85.0
A66: 60 | B66: "Сахарные" по ГОСТ | F66: 37.0 | G66: 510.0 | I66: 85.0
A67: 61 | B67: "Клюквенные" по ГОСТ | F67: 38.0 | G67: 516.0 | I67: 86.0
A68: 62 | B68: "Коровка" с вареной сгущенкой | D68: 0,25 кг /18пакет | F68: 26.0 | G68: 576.0 | I68: 96.0
A69: 63 | B69: "Абсолют" с лимонной начинкой | F69: 23.0 | G69: 528.0 | I69: 88.0

Sheet ХБ
B1: ООО "Хлебокомбинат "АБСОЛЮТ"
A2: Факт. адрес:625014, г. Тюмень, 3 км. Старого Тобольского тракта, 4а Контактные телефоны: 8 (3452) 393-933 - приёмная; 8 (3452) 393-888 , 393-934, 393-400, с. 89821341777 - диспетчерская служба; e-mail absolut-hlebzakaz@mail.ru
A3: Наименование | B3: Вес изделия, кг. | C3: Цена изделия без упаковки, руб. | D3: Цена изделия в упаковке, руб. | E3: Цена изделия в нарезке, руб. | F3: Срок хранения | H3: Кол-во штук в лотке
F4: без уп-ки | G4: в уп-ке
A5: ХЛЕБ
A6: Хлеб Пшеничный I сорт | B6: 0.55 | C6: 22.80 | D6: 24.00 | E6: 25.00 | F6: 24 часа | G6: 72 часа | H6: 14
A7: Хлеб Пшеничный I сорт | B7: 0.28 | C7: - | D7: - | E7: 13.00
A8: Хлеб Дарницкий | B8: 0.70 | C8: 24.50 | D8: - | E8: 26.50 | F8: 36 часов | G8: 4 суток | H8: 14
A9: Хлеб Дарницкий | B9: 0.325 | C9: - | D9: - | E9: 14.00 | G9: 4 суток
A10: Хлеб Дарницкий | B10: 0.65 | C10: 24.00 | D10: 25.00 | E10: 26.00 | F10: 36 часов | G10: 4 суток | H10: 18
A11: Хлеб Дарницкий витамин /новинка/ | B11: 0.65 | C11: - | D11: - | E11: 26.00
A12: Московский ржаной | B12: 0.50 | C12: 23.00 | D12: 24.00 | E12: - | F12: 36 часов | G12: 4 суток | H12: 24
A13: Хлеб Бородинский | B13: 0.30 | C13: 20.00 | D13: 21.00 | E13: - | F13: 36 часов | G13: 4 суток | H13: 24
A14: Хлеб «Абсолютик» | B14: 0.40 | C14: 23.50 | D14: 24.50 | E14: - | F14: 36 часов | G14: 4 суток | H14: 24
A15: Хлеб Подовый I сорт | B15: 0.50 | C15: 24.00 | D15: - | E15: 25.50 | F15: 24 часа | G15: 3 суток | H15: 12
A16: Хлеб «Геркулес 8 злаков» | B16: 0.40 | C16: 25.00 | D16: - | E16: 26.00 | F16: 24 часа | G16: 3 суток | H16: 10
A17: Хлеб Столичный | B17: 0.60 | C17: 26.00 | D17: - | E17: 27.00 | F17: 36 часов | G17: 4 суток | H17: 6
A18: Хлеб Российский | B18: 0.50 | C18: 25.00 | D18: - | E18: 26.00 | F18: 36 часов | G18: 4 суток | H18: 10
A19: Хлеб «Баварский» | B19: 0.40 | C19: 25.00 | D19: - | E19: 26.00 | F19: 36 часов | G19: 4 суток | H19: 10
A20: Хлеб «Мариинский» | B20: 0.40 | C20: 28.00 | D20: - | E20: 29.00 | F20: 36 часов | G20: 4 суток | H20: 10
A21: Хлеб «Тостовый» к завтраку | B21: 0.40 | C21: 24.00 | D21: - | E21: 25.00 | F21: 24 часа | G21: 3 суток | H21: 14
A22: Хлеб «Тостовый» к завтраку | B22: 0.20 | C22: - | D22: - | E22: 13.00 | G22: 3 суток
A23: Хлеб «Здоровье» I сорт | B23: 0.40 | C23: 25.00 | D23: - | E23: 25.00 | F23: 24 часа | G23: 3 суток | H23: 10
A24: Хлеб «Полоцкий» | B24: 0.30 | C24: 25.00 | D24: 26.00 | E24: - | F24: 36 часов | G24: 3 суток | H24: 30
A25: Хлеб «Белорусский» с клюквой | B25: 0.30 | C25: - | D25: - | E25: 28.00 | F25: 36 часов | G25: 4 суток
A26: Хлеб зерновой "Овсяная история" с пророщенной зерновой смесью | B26: 0.20 | C26: - | D26: - | E26: 23.00 | F26: 36 часов | G26: 4 суток | H26: 30
A27: Хлеб "Рябинушка" пшеничный витам. 1 сорт | B27: 0.55 | C27: - | D27: - | E27: 25.50
A28: Хлеб "Волшебная рожь" тостовый | B28: 0.18 | C28: - | D28: - | E28: 14.00 | G28: 4 суток
A29: Хлеб бездрожжевой "Утренний" 0,45кг уп | B29: 0.45 | C29: - | D29: 30.00 | E29: - | G29: 3 суток
A30: Хлеб бездрожжевой "Вечерний" 0,45кг уп | B30: 0.45 | C30: - | D30: 30.00 | E30: - | G30: 3 суток
A31: Хлебец "Деревенский" 0,25кг уп | B31: 0.25 | C31: - | D31: 15.00 | G31: 3 суток
A32: Квас сухой хлебный | B32: 0.50 | D32: 20.00 | G32: 6 месяцев
A33: Квас сухой хлебный | B33: 1.00 | D33: 40.00 | G33: 6 месяцев
A34: БАТОНЫ И БУЛОЧНЫЕ ИЗДЕЛИЯ
A35: Батон Нарезной в/с | B35: 0.40 | C35: 21.50 | D35: 22.50 | E35: 23.20 | F35: 24 часа | G35: 3 суток | H35: 14
A36: Батон с изюмом в/с | B36: 0.35 | C36: 24.80 | D36: 25.00 | E36: - | F36: 24 часа | G36: 3 суток | H36: 14
A37: Батон Особый в/с | B37: 0.35 | C37: - | D37: 22.00 | E37: 23.50 | F37: 24 часа | G37: 3 суток | H37: 10
A38: Бон Багет | B38: 0.30 | D38: 21.00 | F38: 96 часов | G38: 4 суток
A39: Витушка Сдобная в/с | B39: 0.40 | C39: 26.00 | D39: 28.00 | E39: - | F39: 24 часа | G39: - | H39: 14
A40: Крендель с маком в/с | B40: 0.40 | C40: - | D40: 45.00 | E40: - | F40: 24 часа | G40: - | H40: 6
A41: Булка Ярославская I сорт | B41: 0.10 | C41: 9.00 | D41: 10.50 | E41: - | F41: 16 часов | G41: 2 суток | H41: 20
A42: Сдоба Выборгская в/с сорт | B42: 0.10 | C42: 12.00 | D42: 13.50 | E42: -
A43: Плюшка Московская | B43: 0.10 | C43: 11.00 | D43: 12.50 | E43: - | F43: 16 часов | G43: 2 суток | H43: 20
A44: Ватрушка"Дельфийская" с натуральными ягодами | B44: 0.07 | C44: - | D44: 15.00 | E44: - | F44: 16 часов | G44: 2 суток | H44: 20
A45: Ватрушка "Дельфийская" с персиком | B45: 0.09 | C45: - | D45: 15.00 | E45: - | F45: 16 часов | G45: 3 суток
A46: Рулетик с маком в/с | B46: 0.10 | C46: 18.00 | D46: 19.00 | E46: - | F46: 16 часов | G46: 2 суток
A47: Гребешок ягодный | B47: 0.10 | C47: - | D47: 19.00 | E47: - | F47: 16 часов | G47: 2 суток
A48: Булочка с изюмом | B48: 0.80 | C48: 10.00 | D48: 11.20 | E48: - | F48: 72 часа | G48: 3 суток
A49: Завиток сдобный с лимонной начинкой /новинка/ | B49: 0.25 | C49: - | D49: 48.00 | E49: - | G49: 5 суток
A50: Калачик с кунжутом в/с /новинка/ | B50: 0.10 | C50: - | D50: 9.00 | E50: - | G50: 3 суток
A51: Калачик с маком в/с /новинка/ | B51: 0.10 | C51: - | D51: 9.00 | E51: - | G51: 3 суток
A52: ИЗДЕЛИЯ ИЗ СЛОЕННОГО ТЕСТА
A53: Булочка к чаю (с абрикосовой начинкой) | B53: 0.07 | C53: - | D53: 16.00 | E53: - | F53: 24 часа | G53: 3 суток | H53: 30
A54: Круассан с вареным сгущ. молоком | B54: 0.09 | C54: - | D54: 18.00 | E54: - | F54: 24 часа | G54: 3 суток | H54: 30
A55: Круассан с земляничной начинкой | B55: 0.09 | C55: - | D55: 18.00 | F55: 24 часа | G55: 3 суток | H55: 30
A56: Круассан сшоколадной начинкой | B56: 0.09 | C56: - | D56: 20.00 | E56: -
A57: Слойка «Забава» с яблочной начинкой | B57: 0.07 | C57: 17.00 | D57: 18.00 | E57: - | F57: 24 часа | G57: 3 суток | H57: 40
A58: Слойка «Забава» с вишневой начинкой | B58: 0.07 | C58: - | D58: 18.00 | E58: - | F58: 24 часа | G58: 3 суток | H58: 40
A59: Слойка «Забава» с творожной начинкой | B59: 0.07 | D59: 17.00
A60: ХЛЕБНЫЕ ИЗДЕЛИЯ
A61: Хлебцы «Шотландские» | B61: 0.07 | C61: - | D61: 10.00 | E61: - | F61: 16 часов | G61: 3 суток | H61: 40
A62: Сырная палочка | B62: 0.075 | C62: 16.3 | D62: 17.00 | G62: 72 часа
A63: СУХАРИ
A64: Сухари пшеничные сладкие в/с | B64: 0.5 | C64: - | D64: 40.00 | E64: - | F64: - | G64: 30 суток | H64: -
A65: Сухари-гренки пшеничные в/с | B65: 0.3 | C65: - | D65: 19.00 | E65: - | F65: - | G65: 30 суток | H65: -
A66: Сухари-гренки ржаные | B66: 0.3 | C66: - | D66: 16.00 | E66: - | F66: - | G66: 30 суток | H66: -
A67: Сухари панировочные | B67: 0.5 | C67: - | D67: 15.00 | E67: - | F67: - | G67: 4 мес. | H67: -
A68: Сухари панировочные | B68: 1.0 | C68: - | D68: 30.00 | E68: - | F68: - | G68: 4 мес. | H68: -
A69: ТЕСТО
A70: Тесто дрож. сдобное в/с | B70: 1.0 | C70: 65.00 | F70: 24 ч при t=+5-0 72 ч при t=-5-0
A71: Тесто дрожжевое в/с | B71: 1.0 | C71: 45.00
A72: Тесто слоенное пресное в/с | B72: 1/5 кг | D72: 70.00
A73: Тесто слоенное пресное в/с | B73: 1.0 | D73: 90.00
A74: Тесто слоеное дрожжевое в/с | B74: 1.0 | C74: 95.00 | F74: 30 суток при t=-18
A75: Тесто слоеное дрожжевое в/с | B75: 1/5 кг | C75: 74.00
A76: Тесто бездрожжевое слоеное "Абсолютно без хлопот" 0,5 кг в уп. | B76: 0.5 | C76: 60.00 | F76: 120 суток при t=-18
A77: Тесто дрожжевое слоеное "Абсолютно без хлопот" 0,5 кг в уп. | B77: 0.5 | C77: 62.00 | F77: 120 суток при t=-18
